[Event "Titled Tuesday Blitz August 16 Late 2022"]
[White "Al Hosani, Omran"]
[Black "Dubov, Daniil"]
[WhiteFideId "9308733"]
[BlackFideId "24126055"]
[WhiteElo "2236"]
[BlackElo "2791"]
[Result "1-0"]
[Round "06"]
[TimeControl "180+1"]
[Date "2022.08.16"]
[WhiteClock "0:00:42"]
[BlackClock "0:00:33"]

1. d4 {[%clk 0:03:00]}  Nc6 {[%clk 0:03:00]} 2. c4 {[%clk 0:02:59]}  e5 {[%clk 0:03:01]} 3. d5 {[%clk 0:02:58]}  Bb4+ {[%clk 0:03:01]} 4. Bd2 {[%clk 0:02:58]}  Bxd2+ {[%clk 0:03:01]} 5. Qxd2 {[%clk 0:02:58]}  Nce7 {[%clk 0:03:02]} 6. e3 {[%clk 0:02:57]}  d6 {[%clk 0:03:01]} 7. Nc3 {[%clk 0:02:58]}  f5 {[%clk 0:03:01]} 8. f4 {[%clk 0:02:54]}  Nf6 {[%clk 0:03:02]} 9. Nf3 {[%clk 0:02:54]}  e4 {[%clk 0:03:03]} 10. Nd4 {[%clk 0:02:53]}  O-O {[%clk 0:03:04]} 11. Be2 {[%clk 0:02:54]}  Bd7 {[%clk 0:03:03]} 12. O-O {[%clk 0:02:52]}  h6 {[%clk 0:03:03]} 13. b4 {[%clk 0:02:50]}  b6 {[%clk 0:03:02]} 14. c5 {[%clk 0:02:44]}  bxc5 {[%clk 0:03:03]} 15. bxc5 {[%clk 0:02:45]}  dxc5 {[%clk 0:03:03]} 16. Nb3 {[%clk 0:02:45]}  Be8 {[%clk 0:02:57]} 17. Nxc5 {[%clk 0:02:41]}  Bf7 {[%clk 0:02:58]} 18. Rfd1 {[%clk 0:02:17]}  Nexd5 {[%clk 0:02:55]} 19. Nxd5 {[%clk 0:02:11]}  Bxd5 {[%clk 0:02:56]} 20. Rac1 {[%clk 0:02:07]}  Qe7 {[%clk 0:02:54]} 21. Qa5 {[%clk 0:01:53]}  c6 {[%clk 0:02:51]} 22. Nb3 {[%clk 0:01:53]}  Rfc8 {[%clk 0:01:34]} 23. Nd4 {[%clk 0:01:52]}  g6 {[%clk 0:01:34]} 24. Ba6 {[%clk 0:01:48]}  Rc7 {[%clk 0:01:32]} 25. Bc4 {[%clk 0:01:31]}  Rd8 {[%clk 0:01:21]} 26. Nxc6 {[%clk 0:01:18]}  Rxc6 {[%clk 0:01:17]} 27. Rxd5 {[%clk 0:01:17]}  Nxd5 {[%clk 0:00:44]} 28. Bxd5+ {[%clk 0:01:13]}  Rxd5 {[%clk 0:00:44]} 29. Qxd5+ {[%clk 0:01:13]}  Re6 {[%clk 0:00:45]} 30. Rc6 {[%clk 0:01:01]}  Kf7 {[%clk 0:00:45]} 31. Qc4 {[%clk 0:01:01]}  Qe8 {[%clk 0:00:37]} 32. Rc7+ {[%clk 0:00:51]}  Kf8 {[%clk 0:00:33]} 33. Rc8 {[%clk 0:00:42]} 1-0


[Site "https://www.chess.com"]

[Event "Titled Tuesday Blitz August 16 Late 2022"]
[White "Aldokhin, Ivan"]
[Black "Krzyzanowski, Marcin"]
[WhiteFideId "24115720"]
[BlackFideId "1132199"]
[WhiteElo "2246"]
[BlackElo "2396"]
[Result "0-1"]
[Round "06"]
[TimeControl "180+1"]
[Date "2022.08.16"]
[WhiteClock "0:00:01"]
[BlackClock "0:02:00"]

1. e4 {[%clk 0:03:00]}  d5 {[%clk 0:02:59]} 2. Nc3 {[%clk 0:02:59]}  dxe4 {[%clk 0:02:57]} 3. Nxe4 {[%clk 0:02:59]}  Nf6 {[%clk 0:02:57]} 4. Ng5 {[%clk 0:02:46]}  c5 {[%clk 0:02:54]} 5. Bc4 {[%clk 0:02:44]}  e6 {[%clk 0:02:54]} 6. N1f3 {[%clk 0:02:42]}  Nc6 {[%clk 0:02:54]} 7. Qe2 {[%clk 0:02:37]}  h6 {[%clk 0:02:54]} 8. Ne4 {[%clk 0:02:36]}  Be7 {[%clk 0:02:53]} 9. d3 {[%clk 0:02:29]}  Nd4 {[%clk 0:02:51]} 10. Nxd4 {[%clk 0:02:27]}  cxd4 {[%clk 0:02:52]} 11. Nxf6+ {[%clk 0:02:17]}  Bxf6 {[%clk 0:02:51]} 12. Bd2 {[%clk 0:02:17]}  O-O {[%clk 0:02:51]} 13. g4 {[%clk 0:02:12]}  b5 {[%clk 0:02:50]} 14. Bb3 {[%clk 0:02:00]}  a5 {[%clk 0:02:50]} 15. a3 {[%clk 0:01:51]}  Bb7 {[%clk 0:02:50]} 16. O-O-O {[%clk 0:01:33]}  Bxh1 {[%clk 0:02:40]} 17. Rxh1 {[%clk 0:01:32]}  a4 {[%clk 0:02:41]} 18. Ba2 {[%clk 0:01:32]}  b4 {[%clk 0:02:41]} 19. Bxb4 {[%clk 0:01:28]}  Be7 {[%clk 0:02:41]} 20. Bd2 {[%clk 0:01:03]}  Rb8 {[%clk 0:02:41]} 21. c4 {[%clk 0:00:36]}  dxc3 {[%clk 0:02:38]} 22. Bxc3 {[%clk 0:00:35]}  Bf6 {[%clk 0:02:38]} 23. Bxf6 {[%clk 0:00:20]}  Qxf6 {[%clk 0:02:39]} 24. Bc4 {[%clk 0:00:19]}  Rb6 {[%clk 0:02:36]} 25. h4 {[%clk 0:00:19]}  Rfb8 {[%clk 0:02:36]} 26. g5 {[%clk 0:00:18]}  hxg5 {[%clk 0:02:33]} 27. hxg5 {[%clk 0:00:18]}  Qxg5+ {[%clk 0:02:24]} 28. Qd2 {[%clk 0:00:16]}  Qxd2+ {[%clk 0:02:24]} 29. Kxd2 {[%clk 0:00:17]}  Rxb2+ {[%clk 0:02:24]} 30. Ke3 {[%clk 0:00:17]}  g6 {[%clk 0:02:16]} 31. f4 {[%clk 0:00:14]}  Kg7 {[%clk 0:02:16]} 32. Kd4 {[%clk 0:00:14]}  Rd8+ {[%clk 0:02:14]} 33. Ke4 {[%clk 0:00:13]}  Kf6 {[%clk 0:02:13]} 34. Rc1 {[%clk 0:00:08]}  Re2+ {[%clk 0:02:12]} 35. Kf3 {[%clk 0:00:07]}  Rh2 {[%clk 0:02:12]} 36. Ke4 {[%clk 0:00:08]}  Rh4 {[%clk 0:02:11]} 37. Ke3 {[%clk 0:00:05]}  Kf5 {[%clk 0:02:11]} 38. Rf1 {[%clk 0:00:03]}  Rdh8 {[%clk 0:02:06]} 39. Bb5 {[%clk 0:00:01]}  Rh3+ {[%clk 0:02:03]} 40. Kd4 {[%clk 0:00:01]}  R8h4 {[%clk 0:02:02]} 41. Bxa4 {[%clk 0:00:01]}  Rxf4+ {[%clk 0:02:01]} 42. Rxf4+ {[%clk 0:00:01]}  Kxf4 {[%clk 0:02:02]} 43. Be8 {[%clk 0:00:02]}  e5+ {[%clk 0:02:01]} 44. Kd5 {[%clk 0:00:01]}  Rxd3+ {[%clk 0:02:00]} 0-1


[Site "https://www.chess.com"]

[Event "Titled Tuesday Blitz August 16 Late 2022"]
[White "Alexikov, Alexander"]
[Black "Rosenberg, Evan S"]
[WhiteFideId "14103958"]
[BlackFideId "2019299"]
[WhiteElo "2253"]
[BlackElo "1999"]
[Result "0-1"]
[Round "06"]
[TimeControl "180+1"]
[Date "2022.08.18"]
[WhiteClock "0:00:00"]
[BlackClock "0:00:00"]

1. e4 {[%clk 0:00:00]}  e6 {[%clk 0:00:00]} 2. d4 {[%clk 0:00:00]}  d5 {[%clk 0:00:00]} 3. Nc3 {[%clk 0:00:00]}  Bb4 {[%clk 0:00:00]} 4. Ne2 {[%clk 0:00:00]}  dxe4 {[%clk 0:00:00]} 5. a3 {[%clk 0:00:00]}  Bxc3+ {[%clk 0:00:00]} 6. Nxc3 {[%clk 0:00:00]}  Nc6 {[%clk 0:00:00]} 7. Bb5 {[%clk 0:00:00]}  Bd7 {[%clk 0:00:00]} 8. Nxe4 {[%clk 0:00:00]}  Qh4 {[%clk 0:00:00]} 9. Nc5 {[%clk 0:00:00]}  O-O-O {[%clk 0:00:00]} 10. Nxd7 {[%clk 0:00:00]}  Rxd7 {[%clk 0:00:00]} 11. Be3 {[%clk 0:00:00]}  Nge7 {[%clk 0:00:00]} 12. O-O {[%clk 0:00:00]}  Rd5 {[%clk 0:00:00]} 13. c4 {[%clk 0:00:00]}  Rh5 {[%clk 0:00:00]} 14. h3 {[%clk 0:00:00]}  Rd8 {[%clk 0:00:00]} 15. Qg4 {[%clk 0:00:00]}  Nxd4 {[%clk 0:00:00]} 16. Bxd4 {[%clk 0:00:00]}  Rxd4 {[%clk 0:00:00]} 17. Qxg7 {[%clk 0:00:00]}  c6 {[%clk 0:00:00]} 18. Rad1 {[%clk 0:00:00]}  Nf5 {[%clk 0:00:00]} 19. Qf8+ {[%clk 0:00:00]}  Qd8 {[%clk 0:00:00]} 20. Qxd8+ {[%clk 0:00:00]}  Kxd8 {[%clk 0:00:00]} 21. Ba4 {[%clk 0:00:00]}  Rg5 {[%clk 0:00:00]} 22. Bc2 {[%clk 0:00:00]}  Rxd1 {[%clk 0:00:00]} 23. Rxd1+ {[%clk 0:00:00]}  Kc7 {[%clk 0:00:00]} 24. g4 {[%clk 0:00:00]}  Nd6 {[%clk 0:00:00]} 25. b3 {[%clk 0:00:00]}  h5 {[%clk 0:00:00]} 26. f4 {[%clk 0:00:00]}  Rg7 {[%clk 0:00:00]} 27. g5 {[%clk 0:00:00]}  h4 {[%clk 0:00:00]} 28. Kf2 {[%clk 0:00:00]}  a5 {[%clk 0:00:00]} 29. c5 {[%clk 0:00:00]}  Nb5 {[%clk 0:00:00]} 30. a4 {[%clk 0:00:00]}  Nc3 {[%clk 0:00:00]} 31. Re1 {[%clk 0:00:00]}  Nd5 {[%clk 0:00:00]} 32. Kf3 {[%clk 0:00:00]}  Kd7 {[%clk 0:00:00]} 33. Kg4 {[%clk 0:00:00]}  f6 {[%clk 0:00:00]} 0-1


[Site "https://www.chess.com"]

[Event "Titled Tuesday Blitz August 16 Late 2022"]
[White "Arnold, Ken"]
[Black "Winterberg, Lukas"]
[WhiteFideId "2056836"]
[BlackFideId "24622702"]
[WhiteElo "2391"]
[BlackElo "2349"]
[Result "1-0"]
[Round "06"]
[TimeControl "180+1"]
[Date "2022.08.18"]
[WhiteClock "0:00:00"]
[BlackClock "0:00:00"]

1. d4 {[%clk 0:00:00]}  Nf6 {[%clk 0:00:00]} 2. c4 {[%clk 0:00:00]}  e6 {[%clk 0:00:00]} 3. Nf3 {[%clk 0:00:00]}  d5 {[%clk 0:00:00]} 4. Nc3 {[%clk 0:00:00]}  Be7 {[%clk 0:00:00]} 5. cxd5 {[%clk 0:00:00]}  exd5 {[%clk 0:00:00]} 6. Bf4 {[%clk 0:00:00]}  O-O {[%clk 0:00:00]} 7. e3 {[%clk 0:00:00]}  c6 {[%clk 0:00:00]} 8. h3 {[%clk 0:00:00]}  Re8 {[%clk 0:00:00]} 9. Bd3 {[%clk 0:00:00]}  a5 {[%clk 0:00:00]} 10. O-O {[%clk 0:00:00]}  Bd6 {[%clk 0:00:00]} 11. Rc1 {[%clk 0:00:00]}  Na6 {[%clk 0:00:00]} 12. Bxd6 {[%clk 0:00:00]}  Qxd6 {[%clk 0:00:00]} 13. Na4 {[%clk 0:00:00]}  Nb4 {[%clk 0:00:00]} 14. Nb6 {[%clk 0:00:00]}  Nxd3 {[%clk 0:00:00]} 15. Qxd3 {[%clk 0:00:00]}  Ra6 {[%clk 0:00:00]} 16. Nxc8 {[%clk 0:00:00]}  Rxc8 {[%clk 0:00:00]} 17. Rc2 {[%clk 0:00:00]}  Ne4 {[%clk 0:00:00]} 18. Rfc1 {[%clk 0:00:00]}  a4 {[%clk 0:00:00]} 19. Nd2 {[%clk 0:00:00]}  Nxd2 {[%clk 0:00:00]} 20. Qxd2 {[%clk 0:00:00]}  h6 {[%clk 0:00:00]} 21. Rc5 {[%clk 0:00:00]}  Raa8 {[%clk 0:00:00]} 22. b4 {[%clk 0:00:00]}  axb3 {[%clk 0:00:00]} 23. axb3 {[%clk 0:00:00]}  Qe6 {[%clk 0:00:00]} 24. Qc2 {[%clk 0:00:00]}  Ra6 {[%clk 0:00:00]} 25. b4 {[%clk 0:00:00]}  Rca8 {[%clk 0:00:00]} 26. b5 {[%clk 0:00:00]}  Ra2 {[%clk 0:00:00]} 27. Qd1 {[%clk 0:00:00]}  Qf5 {[%clk 0:00:00]} 28. Qf3 {[%clk 0:00:00]}  Qxf3 {[%clk 0:00:00]} 29. gxf3 {[%clk 0:00:00]}  Rb2 {[%clk 0:00:00]} 30. bxc6 {[%clk 0:00:00]}  bxc6 {[%clk 0:00:00]} 31. Rxc6 {[%clk 0:00:00]}  Raa2 {[%clk 0:00:00]} 32. Rc8+ {[%clk 0:00:00]}  Kh7 {[%clk 0:00:00]} 33. Rf1 {[%clk 0:00:00]}  Rb6 {[%clk 0:00:00]} 34. Kh2 {[%clk 0:00:00]}  Rf6 {[%clk 0:00:00]} 35. f4 {[%clk 0:00:00]}  Re6 {[%clk 0:00:00]} 36. Kg3 {[%clk 0:00:00]}  g5 {[%clk 0:00:00]} 37. fxg5 {[%clk 0:00:00]}  hxg5 {[%clk 0:00:00]} 38. Rd8 {[%clk 0:00:00]}  Ra5 {[%clk 0:00:00]} 39. Rh1 {[%clk 0:00:00]}  Kg6 {[%clk 0:00:00]} 40. h4 {[%clk 0:00:00]}  Re4 {[%clk 0:00:00]} 41. Rg8+ {[%clk 0:00:00]}  Kf6 {[%clk 0:00:00]} 42. Rxg5 {[%clk 0:00:00]}  Rb5 {[%clk 0:00:00]} 43. Kf3 {[%clk 0:00:00]}  Re7 {[%clk 0:00:00]} 44. Rhg1 {[%clk 0:00:00]}  Rc7 {[%clk 0:00:00]} 45. R1g4 {[%clk 0:00:00]}  Rc2 {[%clk 0:00:00]} 46. Rf4+ {[%clk 0:00:00]}  Ke7 {[%clk 0:00:00]} 47. Rgf5 {[%clk 0:00:00]}  Rbb2 {[%clk 0:00:00]} 48. Rxf7+ {[%clk 0:00:00]}  Ke8 {[%clk 0:00:00]} 49. Kg2 {[%clk 0:00:00]}  Rc1 {[%clk 0:00:00]} 50. R7f5 {[%clk 0:00:00]}  Re1 {[%clk 0:00:00]} 51. Rxd5 {[%clk 0:00:00]}  Rxe3 {[%clk 0:00:00]} 52. Re5+ {[%clk 0:00:00]}  Rxe5 {[%clk 0:00:00]} 53. dxe5 {[%clk 0:00:00]}  Ke7 {[%clk 0:00:00]} 54. Re4 {[%clk 0:00:00]}  Ke6 {[%clk 0:00:00]} 55. Kg3 {[%clk 0:00:00]}  Rb3+ {[%clk 0:00:00]} 56. Re3 {[%clk 0:00:00]}  Rb1 {[%clk 0:00:00]} 57. f4 {[%clk 0:00:00]}  Rg1+ {[%clk 0:00:00]} 58. Kf3 {[%clk 0:00:00]}  Rh1 {[%clk 0:00:00]} 59. Ke4 {[%clk 0:00:00]}  Rxh4 {[%clk 0:00:00]} 60. Rg3 {[%clk 0:00:00]}  Rh6 {[%clk 0:00:00]} 61. Rg6+ {[%clk 0:00:00]}  Kf7 {[%clk 0:00:00]} 62. Rxh6 {[%clk 0:00:00]} 1-0


[Site "https://www.chess.com"]

[Event "Titled Tuesday Blitz August 16 Late 2022"]
[White "Bochnicka, Vladimir"]
[Black "Reprintsev, Alexander"]
[WhiteFideId "14943450"]
[BlackFideId "14100541"]
[WhiteElo "1939"]
[BlackElo "2108"]
[Result "0-1"]
[Round "06"]
[TimeControl "180+1"]
[Date "2022.08.18"]
[WhiteClock "0:00:00"]
[BlackClock "0:00:00"]

1. e4 {[%clk 0:00:00]}  d5 {[%clk 0:00:00]} 2. exd5 {[%clk 0:00:00]}  Qxd5 {[%clk 0:00:00]} 3. Nc3 {[%clk 0:00:00]}  Qa5 {[%clk 0:00:00]} 4. d4 {[%clk 0:00:00]}  Nf6 {[%clk 0:00:00]} 5. Nf3 {[%clk 0:00:00]}  Nc6 {[%clk 0:00:00]} 6. Bd2 {[%clk 0:00:00]}  a6 {[%clk 0:00:00]} 7. Bc4 {[%clk 0:00:00]}  Qh5 {[%clk 0:00:00]} 8. Ne5 {[%clk 0:00:00]}  Bg4 {[%clk 0:00:00]} 9. Nxg4 {[%clk 0:00:00]}  Qxg4 {[%clk 0:00:00]} 10. Qxg4 {[%clk 0:00:00]}  Nxg4 {[%clk 0:00:00]} 11. h3 {[%clk 0:00:00]}  Nf6 {[%clk 0:00:00]} 12. d5 {[%clk 0:00:00]}  Na5 {[%clk 0:00:00]} 13. Bd3 {[%clk 0:00:00]}  b6 {[%clk 0:00:00]} 14. O-O-O {[%clk 0:00:00]}  O-O-O {[%clk 0:00:00]} 15. Bxa6+ {[%clk 0:00:00]}  Kb8 {[%clk 0:00:00]} 16. Bg5 {[%clk 0:00:00]}  h6 {[%clk 0:00:00]} 17. Bh4 {[%clk 0:00:00]}  g5 {[%clk 0:00:00]} 18. Bg3 {[%clk 0:00:00]}  Bg7 {[%clk 0:00:00]} 19. Rhe1 {[%clk 0:00:00]}  Rhe8 {[%clk 0:00:00]} 20. Bb5 {[%clk 0:00:00]}  Nd7 {[%clk 0:00:00]} 21. Bc6 {[%clk 0:00:00]}  Bxc3 {[%clk 0:00:00]} 22. bxc3 {[%clk 0:00:00]}  Kc8 {[%clk 0:00:00]} 23. Rd4 {[%clk 0:00:00]}  Nxc6 {[%clk 0:00:00]} 24. dxc6 {[%clk 0:00:00]}  Nb8 {[%clk 0:00:00]} 25. Rc4 {[%clk 0:00:00]}  f6 {[%clk 0:00:00]} 26. Re6 {[%clk 0:00:00]}  Rd6 {[%clk 0:00:00]} 27. Bxd6 {[%clk 0:00:00]}  cxd6 {[%clk 0:00:00]} 28. c7 {[%clk 0:00:00]}  Nd7 {[%clk 0:00:00]} 29. Rce4 {[%clk 0:00:00]}  Ne5 {[%clk 0:00:00]} 30. g3 {[%clk 0:00:00]}  Kd7 {[%clk 0:00:00]} 31. R6xe5 {[%clk 0:00:00]}  fxe5 {[%clk 0:00:00]} 32. Rc4 {[%clk 0:00:00]}  Rc8 {[%clk 0:00:00]} 33. Kd2 {[%clk 0:00:00]}  Rxc7 {[%clk 0:00:00]} 34. Rxc7+ {[%clk 0:00:00]}  Kxc7 {[%clk 0:00:00]} 35. Ke3 {[%clk 0:00:00]}  d5 {[%clk 0:00:00]} 36. f4 {[%clk 0:00:00]}  exf4+ {[%clk 0:00:00]} 37. gxf4 {[%clk 0:00:00]}  gxf4+ {[%clk 0:00:00]} 38. Kxf4 {[%clk 0:00:00]}  Kd6 {[%clk 0:00:00]} 39. Kf5 {[%clk 0:00:00]}  e5 {[%clk 0:00:00]} 40. h4 {[%clk 0:00:00]}  e4 {[%clk 0:00:00]} 41. Kf4 {[%clk 0:00:00]}  h5 {[%clk 0:00:00]} 42. c4 {[%clk 0:00:00]}  Kc5 {[%clk 0:00:00]} 43. cxd5 {[%clk 0:00:00]}  Kxd5 {[%clk 0:00:00]} 44. c3 {[%clk 0:00:00]}  b5 {[%clk 0:00:00]} 45. a3 {[%clk 0:00:00]}  Kc4 {[%clk 0:00:00]} 46. Kxe4 {[%clk 0:00:00]}  Kxc3 {[%clk 0:00:00]} 47. Kf5 {[%clk 0:00:00]}  Kb3 {[%clk 0:00:00]} 48. Kg5 {[%clk 0:00:00]}  Kxa3 {[%clk 0:00:00]} 49. Kxh5 {[%clk 0:00:00]}  b4 {[%clk 0:00:00]} 50. Kg6 {[%clk 0:00:00]}  b3 {[%clk 0:00:00]} 51. h5 {[%clk 0:00:00]}  b2 {[%clk 0:00:00]} 52. h6 {[%clk 0:00:00]}  b1=Q+ {[%clk 0:00:00]} 53. Kg7 {[%clk 0:00:00]}  Qb2+ {[%clk 0:00:00]} 54. Kg8 {[%clk 0:00:00]}  Qb8+ {[%clk 0:00:00]} 55. Kg7 {[%clk 0:00:00]}  Qc7+ {[%clk 0:00:00]} 56. Kg8 {[%clk 0:00:00]}  Qd8+ {[%clk 0:00:00]} 57. Kg7 {[%clk 0:00:00]}  Qg5+ {[%clk 0:00:00]} 58. Kh7 {[%clk 0:00:00]}  Kb4 {[%clk 0:00:00]} 0-1


[Site "https://www.chess.com"]

[Event "Titled Tuesday Blitz August 16 Late 2022"]
[White "Bogaudinov, Rushan"]
[Black "Yaksin, Oleg"]
[WhiteFideId "4129288"]
[BlackFideId "24105880"]
[WhiteElo "2040"]
[BlackElo "2256"]
[Result "1-0"]
[Round "06"]
[TimeControl "180+1"]
[Date "2022.08.18"]
[WhiteClock "0:00:00"]
[BlackClock "0:00:00"]

1. d4 {[%clk 0:00:00]}  f5 {[%clk 0:00:00]} 2. Nf3 {[%clk 0:00:00]}  Nf6 {[%clk 0:00:00]} 3. g3 {[%clk 0:00:00]}  g6 {[%clk 0:00:00]} 4. Bg2 {[%clk 0:00:00]}  Bg7 {[%clk 0:00:00]} 5. O-O {[%clk 0:00:00]}  O-O {[%clk 0:00:00]} 6. b3 {[%clk 0:00:00]}  d6 {[%clk 0:00:00]} 7. Bb2 {[%clk 0:00:00]}  Qe8 {[%clk 0:00:00]} 8. c4 {[%clk 0:00:00]}  Na6 {[%clk 0:00:00]} 9. Nc3 {[%clk 0:00:00]}  Bd7 {[%clk 0:00:00]} 10. Re1 {[%clk 0:00:00]}  h6 {[%clk 0:00:00]} 11. a3 {[%clk 0:00:00]}  Qf7 {[%clk 0:00:00]} 12. d5 {[%clk 0:00:00]}  Ne4 {[%clk 0:00:00]} 13. Qc2 {[%clk 0:00:00]}  Nac5 {[%clk 0:00:00]} 14. b4 {[%clk 0:00:00]}  Nxc3 {[%clk 0:00:00]} 15. Bxc3 {[%clk 0:00:00]}  Ne4 {[%clk 0:00:00]} 16. Bxg7 {[%clk 0:00:00]}  Qxg7 {[%clk 0:00:00]} 17. Rac1 {[%clk 0:00:00]}  a5 {[%clk 0:00:00]} 18. Nd2 {[%clk 0:00:00]}  axb4 {[%clk 0:00:00]} 19. axb4 {[%clk 0:00:00]}  Nxd2 {[%clk 0:00:00]} 20. Qxd2 {[%clk 0:00:00]}  Ra3 {[%clk 0:00:00]} 21. c5 {[%clk 0:00:00]}  Bb5 {[%clk 0:00:00]} 22. e4 {[%clk 0:00:00]}  fxe4 {[%clk 0:00:00]} 23. Bxe4 {[%clk 0:00:00]}  Kh7 {[%clk 0:00:00]} 24. h4 {[%clk 0:00:00]}  h5 {[%clk 0:00:00]} 25. Qg5 {[%clk 0:00:00]}  Qf6 {[%clk 0:00:00]} 26. Qxf6 {[%clk 0:00:00]}  exf6 {[%clk 0:00:00]} 27. cxd6 {[%clk 0:00:00]}  cxd6 {[%clk 0:00:00]} 28. Rc7+ {[%clk 0:00:00]}  Kh6 {[%clk 0:00:00]} 29. Rxb7 {[%clk 0:00:00]}  Bc4 {[%clk 0:00:00]} 30. Rc1 {[%clk 0:00:00]}  Bd3 {[%clk 0:00:00]} 31. Rcc7 {[%clk 0:00:00]}  Rh8 {[%clk 0:00:00]} 32. Bxd3 {[%clk 0:00:00]}  Rxd3 {[%clk 0:00:00]} 33. Rb5 {[%clk 0:00:00]}  Rd4 {[%clk 0:00:00]} 34. Rd7 {[%clk 0:00:00]}  g5 {[%clk 0:00:00]} 35. hxg5+ {[%clk 0:00:00]}  Kxg5 {[%clk 0:00:00]} 36. Rxd6 {[%clk 0:00:00]}  h4 {[%clk 0:00:00]} 37. gxh4+ {[%clk 0:00:00]}  Rhxh4 {[%clk 0:00:00]} 38. Re6 {[%clk 0:00:00]}  Rd1+ {[%clk 0:00:00]} 39. Kg2 {[%clk 0:00:00]}  Rg4+ {[%clk 0:00:00]} 40. Kf3 {[%clk 0:00:00]}  Rd3+ {[%clk 0:00:00]} 41. Ke2 {[%clk 0:00:00]}  Rgd4 {[%clk 0:00:00]} 42. d6+ {[%clk 0:00:00]}  Kg6 {[%clk 0:00:00]} 43. Rb6 {[%clk 0:00:00]}  Kf5 {[%clk 0:00:00]} 44. d7 {[%clk 0:00:00]}  Rd2+ {[%clk 0:00:00]} 45. Kf1 {[%clk 0:00:00]}  Rd1+ {[%clk 0:00:00]} 46. Kg2 {[%clk 0:00:00]}  Rxd7 {[%clk 0:00:00]} 47. Rxf6+ {[%clk 0:00:00]}  Kg5 {[%clk 0:00:00]} 48. Rf3 {[%clk 0:00:00]} 1-0


[Site "https://www.chess.com"]

[Event "Titled Tuesday Blitz August 16 Late 2022"]
[White "Carbone, Diego"]
[Black "Sanchez, Robert"]
[WhiteFideId "3002179"]
[BlackFideId "2034360"]
[WhiteElo "2199"]
[BlackElo "1966"]
[Result "1-0"]
[Round "06"]
[TimeControl "180+1"]
[Date "2022.08.18"]
[WhiteClock "0:00:00"]
[BlackClock "0:00:00"]

1. d4 {[%clk 0:00:00]}  d5 {[%clk 0:00:00]} 2. c4 {[%clk 0:00:00]}  e6 {[%clk 0:00:00]} 3. Nc3 {[%clk 0:00:00]}  Nf6 {[%clk 0:00:00]} 4. cxd5 {[%clk 0:00:00]}  exd5 {[%clk 0:00:00]} 5. Bg5 {[%clk 0:00:00]}  Be7 {[%clk 0:00:00]} 6. e3 {[%clk 0:00:00]}  O-O {[%clk 0:00:00]} 7. Qc2 {[%clk 0:00:00]}  c6 {[%clk 0:00:00]} 8. Bd3 {[%clk 0:00:00]}  h6 {[%clk 0:00:00]} 9. Bh4 {[%clk 0:00:00]}  Re8 {[%clk 0:00:00]} 10. Nge2 {[%clk 0:00:00]}  Ne4 {[%clk 0:00:00]} 11. Bxe7 {[%clk 0:00:00]}  Qxe7 {[%clk 0:00:00]} 12. Bxe4 {[%clk 0:00:00]}  dxe4 {[%clk 0:00:00]} 13. O-O {[%clk 0:00:00]}  Nd7 {[%clk 0:00:00]} 14. Rfd1 {[%clk 0:00:00]}  Nf6 {[%clk 0:00:00]} 15. d5 {[%clk 0:00:00]}  Bg4 {[%clk 0:00:00]} 16. dxc6 {[%clk 0:00:00]}  Rac8 {[%clk 0:00:00]} 17. cxb7 {[%clk 0:00:00]}  Qxb7 {[%clk 0:00:00]} 18. Rd4 {[%clk 0:00:00]}  Qa6 {[%clk 0:00:00]} 19. Ng3 {[%clk 0:00:00]}  Qe6 {[%clk 0:00:00]} 20. h3 {[%clk 0:00:00]}  Bf5 {[%clk 0:00:00]} 21. Rad1 {[%clk 0:00:00]}  Bh7 {[%clk 0:00:00]} 22. Qa4 {[%clk 0:00:00]}  a6 {[%clk 0:00:00]} 23. Rd6 {[%clk 0:00:00]}  Qe5 {[%clk 0:00:00]} 24. Rxa6 {[%clk 0:00:00]}  Rcd8 {[%clk 0:00:00]} 25. Rxd8 {[%clk 0:00:00]}  Rxd8 {[%clk 0:00:00]} 26. Ra8 {[%clk 0:00:00]}  Qd6 {[%clk 0:00:00]} 27. Rxd8+ {[%clk 0:00:00]}  Qxd8 {[%clk 0:00:00]} 28. Qd4 {[%clk 0:00:00]}  Qa8 {[%clk 0:00:00]} 29. a4 {[%clk 0:00:00]}  Bg6 {[%clk 0:00:00]} 30. b4 {[%clk 0:00:00]}  h5 {[%clk 0:00:00]} 31. b5 {[%clk 0:00:00]}  h4 {[%clk 0:00:00]} 32. Nge2 {[%clk 0:00:00]}  Bh5 {[%clk 0:00:00]} 33. Nf4 {[%clk 0:00:00]} 1-0


[Site "https://www.chess.com"]

[Event "Titled Tuesday Blitz August 16 Late 2022"]
[White "Chigaev, Maksim"]
[Black "Putnam, Liam"]
[WhiteFideId "4108116"]
[BlackFideId "30938279"]
[WhiteElo "2487"]
[BlackElo "2035"]
[Result "1-0"]
[Round "06"]
[TimeControl "180+1"]
[Date "2022.08.16"]
[WhiteClock "0:02:32"]
[BlackClock "0:00:27"]

1. e4 {[%clk 0:03:00]}  c5 {[%clk 0:02:52]} 2. Nf3 {[%clk 0:03:00]}  d6 {[%clk 0:02:51]} 3. d4 {[%clk 0:02:59]}  cxd4 {[%clk 0:02:51]} 4. Nxd4 {[%clk 0:03:00]}  Nf6 {[%clk 0:02:52]} 5. Nc3 {[%clk 0:03:01]}  g6 {[%clk 0:02:52]} 6. Be3 {[%clk 0:02:59]}  Bg7 {[%clk 0:02:52]} 7. f3 {[%clk 0:02:59]}  O-O {[%clk 0:02:52]} 8. Bc4 {[%clk 0:02:58]}  Nc6 {[%clk 0:02:49]} 9. Bb3 {[%clk 0:02:58]}  Bd7 {[%clk 0:02:47]} 10. h4 {[%clk 0:02:59]}  Nxd4 {[%clk 0:02:27]} 11. Bxd4 {[%clk 0:03:00]}  b5 {[%clk 0:02:27]} 12. h5 {[%clk 0:02:57]}  Nxh5 {[%clk 0:02:20]} 13. Bxg7 {[%clk 0:02:54]}  Kxg7 {[%clk 0:01:47]} 14. Qd2 {[%clk 0:02:54]}  b4 {[%clk 0:01:24]} 15. Ne2 {[%clk 0:02:50]}  a5 {[%clk 0:00:38]} 16. g4 {[%clk 0:02:49]}  Nf6 {[%clk 0:00:38]} 17. Qh6+ {[%clk 0:02:44]}  Kg8 {[%clk 0:00:38]} 18. g5 {[%clk 0:02:40]}  Nh5 {[%clk 0:00:37]} 19. Rxh5 {[%clk 0:02:31]}  gxh5 {[%clk 0:00:35]} 20. g6 {[%clk 0:02:31]}  hxg6 {[%clk 0:00:31]} 21. Qxg6+ {[%clk 0:02:32]}  Kh8 {[%clk 0:00:32]} 22. Qxh5+ {[%clk 0:02:32]}  Kg7 {[%clk 0:00:30]} 23. Qg5+ {[%clk 0:02:32]}  Kh7 {[%clk 0:00:27]} 24. Kd2 {[%clk 0:02:32]} 1-0


[Site "https://www.chess.com"]